bitfinex-derivatives/quotes_BTCF0:USTF0_20210706
["timestamp","ask_amount","ask_price","bid_price","bid_amount"]
[1625550175722,0.1739958,34773.0,34772.0,1.01185563]
[1625550176274,0.1739958,34773.0,34772.0,0.002]
[1625550177274,0.1739958,34773.0,34771.0,1.01085099]
[1625550177374,0.4045058,34773.0,34771.0,1.01085099]
[1625550177674,0.01501089,34772.0,34771.0,1.01085099]
[1625550177874,0.07401089,34772.0,34771.0,1.01085099]
[1625550178127,0.07401089,34772.0,34771.0,0.001]
[1625550178326,0.07401089,34772.0,34770.0,1.00970497]
[1625550178528,0.07401089,34772.0,34770.0,0.97430497]
[1625550178629,0.17401089,34772.0,34770.0,0.97430497]
[1625550178730,0.01501122,34771.0,34770.0,0.97430497]
[1625550178831,0.07401122,34771.0,34770.0,0.97430497]
[1625550179382,0.31458666,34771.0,34770.0,0.97430497]
[1625550179734,0.31458666,34771.0,34768.0,1.1796368]
[1625550179934,0.41458666,34771.0,34768.0,1.1796368]
[1625550180135,0.01501139,34770.0,34768.0,1.1796368]
[1625550180233,0.07401139,34770.0,34768.0,1.1796368]
[1625550180734,0.01501565,34769.0,34768.0,1.1796368]
[1625550180833,0.07401565,34769.0,34768.0,1.1796368]
[1625550180936,0.17401565,34769.0,34768.0,1.1796368]
[1625550181388,0.41459109,34769.0,34768.0,1.1796368]
[1625550181736,5.02239109,34769.0,34768.0,1.1796368]
[1625550181835,5.08139109,34769.0,34768.0,1.1796368]
[1625550182285,5.06637544,34769.0,34768.0,1.1796368]
[1625550182585,5.08139071,34769.0,34768.0,1.1796368]
[1625550183787,5.30472071,34769.0,34768.0,1.1796368]
[1625550186745,5.30472071,34769.0,34767.0,1.18306844]
[1625550187145,0.01501556,34768.0,34767.0,1.18306844]
[1625550187245,0.07401556,34768.0,34767.0,1.18306844]
[1625550187346,0.314591,34768.0,34767.0,1.18306844]
[1625550187747,0.414591,34768.0,34767.0,1.18306844]
[1625550188601,0.414591,34768.0,34767.0,1.18648157]
[1625550192707,0.414591,34768.0,34767.0,2.53743996]
[1625550192805,0.355591,34768.0,34767.0,2.53743996]
[1625550193007,0.11501556,34768.0,34767.0,2.53743996]
[1625550193157,0.11501556,34768.0,34767.0,2.59643996]
[1625550193505,0.11501556,34768.0,34767.0,3.07759084]
[1625550193706,0.11501556,34768.0,34767.0,3.01859084]
[1625550195357,0.11501556,34768.0,34767.0,3.01759084]
[1625550196159,0.17401556,34768.0,34767.0,3.01759084]
[1625550196260,0.17401556,34768.0,34767.0,2.53643996]
[1625550196361,0.23301556,34768.0,34767.0,2.53643996]
[1625550196762,3.98191556,34768.0,34767.0,1.18548157]
[1625550197165,3.92291556,34768.0,34767.0,1.18548157]
[1625550197363,3.98191556,34768.0,34767.0,1.18548157]
[1625550197463,3.92291556,34768.0,34767.0,1.18548157]
[1625550197712,3.98191556,34768.0,34767.0,1.18548157]
[1625550197815,3.92291556,34768.0,34767.0,1.18548157]
[1625550198017,3.98191556,34768.0,34767.0,1.18548157]
[1625550198319,3.98191556,34768.0,34767.0,2.53672194]
[1625550205381,4.06831556,34768.0,34767.0,2.53672194]
[1625550205582,3.98191556,34768.0,34767.0,2.53672194]
[1625550208742,3.98191556,34768.0,34767.0,3.55420841]
[1625550213353,3.98191556,34768.0,34767.0,3.51480841]
[1625550213453,0.23301556,34768.0,34767.0,3.46860841]
[1625550213553,0.17401556,34768.0,34767.0,3.46860841]
[1625550213653,0.11501556,34768.0,34767.0,3.70918385]
[1625550214256,0.11501556,34768.0,34767.0,5.23329184]
[1625550218263,0.11501556,34768.0,34767.0,4.9927164]
[1625550218565,0.23301556,34768.0,34767.0,4.9927164]
[1625550218663,0.23301556,34768.0,34767.0,4.98930327]
[1625550218764,0.23301556,34768.0,34767.0,4.94970327]
[1625550218864,0.23301556,34768.0,34767.0,4.94670327]
[1625550218964,0.23301556,34768.0,34767.0,4.90340327]
[1625550219064,0.23301556,34768.0,34767.0,4.85970327]
[1625550219165,0.23301556,34768.0,34767.0,4.81610327]
[1625550219269,1.25532826,34768.0,34767.0,3.21129528]
[1625550219364,1.25532826,34768.0,34767.0,2.92589528]
[1625550219466,1.25532826,34768.0,34767.0,2.86779528]
[1625550219564,1.25532826,34768.0,34767.0,2.82479528]
[1625550219817,2.61841552,34768.0,34767.0,2.82479528]
[1625550220422,2.61841552,34768.0,34767.0,1.47355491]
[1625550220873,2.61841552,34768.0,34767.0,1.01748647]
[1625550221076,2.55941552,34768.0,34767.0,1.01748647]
[1625550221587,2.55941552,34768.0,34767.0,2.37207311]
[1625550221777,2.61841552,34768.0,34767.0,2.37207311]
[1625550222377,2.61841552,34768.0,34767.0,1.01748647]
[1625550223230,2.61841552,34768.0,34767.0,2.37104924]
[1625550223231,1.25532826,34768.0,34767.0,2.37104924]
[1625550224881,1.93685888,34768.0,34767.0,3.04791473]
[1625550232199,1.87785888,34768.0,34767.0,3.04791473]
[1625550232501,1.87785888,34768.0,34767.0,3.05132818]
[1625550232752,0.85554618,34768.0,34767.0,4.57068042]
[1625550233054,0.85554618,34768.0,34767.0,4.57409388]
[1625550233605,0.85554618,34768.0,34767.0,4.57068042]
[1625550234307,0.79654618,34768.0,34767.0,4.57068042]
[1625550235258,0.79654618,34768.0,34767.0,5.07790304]
[1625550235358,1.30763585,34768.0,34767.0,5.07790304]
[1625550236509,1.36663585,34768.0,34767.0,5.07790304]
[1625550236611,2.38871675,34768.0,34767.0,3.55513735]
[1625550237363,2.32971675,34768.0,34767.0,3.55513735]
[1625550239767,2.38871675,34768.0,34767.0,3.55513735]
[1625550239865,2.38871675,34768.0,34767.0,4.73939955]
[1625550240218,3.58123726,34768.0,34767.0,4.73939955]
[1625550243933,4.94407908,34768.0,34767.0,3.38583678]
[1625550245634,3.58123726,34768.0,34767.0,4.73807641]
[1625550246437,4.94392504,34768.0,34767.0,3.38583678]
[1625550250697,5.66565136,34768.0,34767.0,3.38583678]
[1625550254102,5.66565136,34768.0,34767.0,3.38925052]
[1625550254203,5.99186136,34768.0,34767.0,3.38925052]
[1625550255909,5.66565136,34768.0,34767.0,3.38925052]
[1625550256107,5.60665136,34768.0,34767.0,3.71219052]
[1625550256707,5.60665136,34768.0,34767.0,3.95276596]
[1625550257009,3.05144307,34768.0,34767.0,5.30091599]
[1625550257109,3.11044307,34768.0,34767.0,5.30091599]
[1625550258361,3.11044307,34768.0,34767.0,6.82146044]
[1625550258814,2.08836217,34768.0,34767.0,6.82146044]
[1625550259715,3.11057425,34768.0,34767.0,6.82146044]
[1625550260014,3.05157425,34768.0,34767.0,6.82146044]
[1625550261619,2.81099881,34768.0,34767.0,6.82146044]
[1625550262071,1.78878673,34768.0,34767.0,6.82146044]
[1625550262421,1.10725611,34768.0,34767.0,6.82146044]
[1625550262921,0.86668067,34768.0,34767.0,6.82146044]
[1625550264775,0.62610523,34768.0,34767.0,7.06203588]
[1625550266983,0.2854947,34768.0,34767.0,7.06203588]
[1625550267333,0.62611217,34768.0,34767.0,7.06203588]
[1625550268384,0.61109661,34768.0,34767.0,7.06203588]
[1625550268738,0.27046894,34768.0,34767.0,7.06203588]
[1625550269185,0.27046894,34768.0,34767.0,7.06544909]
[1625550269739,0.1,34768.0,34767.0,7.06544909]
[1625550271041,0.1853063,34768.0,34767.0,7.06544909]
[1625550272191,0.35573907,34768.0,34767.0,7.06544909]
[1625550273594,0.1853063,34768.0,34767.0,7.06544909]
[1625550273947,0.1,34768.0,34767.0,7.06544909]
[1625550274248,0.1,34768.0,34767.0,7.12444909]
[1625550274347,0.51095627,34770.0,34767.0,7.18344909]
[1625550274647,1.26231773,34772.0,34767.0,7.18344909]
[1625550274848,1.0216223,34777.0,34771.0,5.29571598]
[1625550274947,1.0216223,34777.0,34771.0,5.35471598]
[1625550275298,1.0216223,34777.0,34772.0,5.0581148]
[1625550275398,1.0216223,34777.0,34772.0,5.1171148]
[1625550276300,1.0216223,34777.0,34772.0,5.0581148]
[1625550276402,1.02149955,34775.0,34772.0,5.0581148]
[1625550276502,1.02149955,34775.0,34772.0,5.1171148]
[1625550276600,0.01595282,34773.0,34772.0,5.11370199]
[1625550276801,0.001,34773.0,34772.0,5.11370199]
[1625550277102,0.01595311,34773.0,34772.0,5.11370199]
[1625550277403,0.01595311,34773.0,34772.0,3.59729139]
[1625550278704,0.001,34773.0,34772.0,3.59729139]
[1625550278956,0.001,34773.0,34772.0,3.60070438]
[1625550279157,0.001,34773.0,34772.0,5.11782512]
[1625550279871,0.06,34773.0,34772.0,5.11782512]
[1625550279966,0.06,34773.0,34772.0,5.05882512]
[1625550280066,0.07495334,34773.0,34772.0,5.05541213]
[1625550280362,0.31533334,34773.0,34772.0,3.53829139]
[1625550280463,4.54773334,34773.0,34772.0,3.53829139]
[1625550280813,5.80966693,34773.0,34772.0,3.53829139]
[1625550284776,1.57726693,34773.0,34772.0,3.53829139]
[1625550286234,1.57726693,34773.0,34772.0,3.54170464]
[1625550288285,1.57626693,34773.0,34772.0,3.54170464]
[1625550292041,1.51726693,34773.0,34772.0,3.54170464]
[1625550292244,1.19158969,34775.0,34772.0,3.54170464]
[1625550292354,1.19158969,34775.0,34772.0,3.60070464]
[1625550292653,0.55128216,34777.0,34772.0,3.60070464]
[1625550292757,0.01490506,34774.0,34773.0,0.00341277]
[1625550292852,0.962,34788.0,34773.0,0.00341277]
[1625550292853,0.962,34788.0,34773.0,0.06241277]
[1625550292854,1.53166317,34786.0,34773.0,0.06241277]
[1625550292951,1.53166317,34786.0,34781.0,0.48115088]
[1625550292952,0.24057544,34782.0,34781.0,0.48115088]
[1625550293048,0.24057544,34782.0,34781.0,0.88127088]
[1625550293245,0.25543318,34782.0,34781.0,0.88468326]
[1625550293746,0.25543318,34782.0,34781.0,5.73088326]
[1625550293948,0.25543318,34782.0,34781.0,7.24655789]
[1625550294045,0.962,34788.0,34781.0,7.24655789]
[1625550294245,0.962,34788.0,34781.0,7.30555789]
[1625550294350,0.01481074,34787.0,34782.0,0.00341201]
[1625550294497,0.01481074,34787.0,34782.0,0.06241201]
[1625550294597,0.003,34788.0,34782.0,0.06241201]
[1625550294895,0.003,34788.0,34783.0,0.00341192]
[1625550294997,0.003,34788.0,34787.0,0.48115088]
[1625550295198,0.003,34788.0,34787.0,0.54015088]
[1625550297352,0.001,34788.0,34787.0,0.54015088]
[1625550298657,0.06,34788.0,34787.0,0.54015088]
[1625550300262,0.38325,34788.0,34787.0,0.54015088]
[1625550301564,0.38325,34788.0,34787.0,0.48115088]
[1625550303619,0.38325,34788.0,34787.0,0.54015088]
[1625550303968,0.38325,34788.0,34787.0,0.48115088]
[1625550306274,0.38225,34788.0,34787.0,0.48215088]
[1625550308279,0.44125,34788.0,34787.0,0.48215088]
[1625550310382,0.059,34788.0,34787.0,0.48215088]
[1625550310515,0.059,34788.0,34787.0,0.79289088]
[1625550311090,0.057,34793.0,34787.0,0.79289088]
[1625550312695,0.057,34793.0,34788.0,1.17483273]
[1625550313146,0.001,34794.0,34792.0,0.48115088]
[1625550313346,0.001,34794.0,34792.0,0.54015088]
[1625550313445,0.06,34794.0,34792.0,0.48115088]
[1625550313748,0.06,34794.0,34792.0,0.54015088]
[1625550313848,0.06,34794.0,34792.0,0.48115088]
[1625550314149,0.06,34794.0,34792.0,0.54015088]
[1625550315250,0.06,34794.0,34793.0,0.24057544]
[1625550320410,0.07487762,34794.0,34793.0,0.24057544]
[1625550325022,0.01587762,34794.0,34793.0,0.24057544]
[1625550325976,0.07487762,34794.0,34793.0,0.24057544]
[1625550326175,0.01587762,34794.0,34793.0,0.24057544]
[1625550327327,0.01487762,34794.0,34793.0,0.24157544]
[1625550327630,0.07398386,34797.0,34793.0,0.24157544]
[1625550327829,0.01498394,34794.0,34793.0,0.24157544]
[1625550328181,0.07398382,34796.0,34793.0,0.24157544]
[1625550328383,0.01498386,34794.0,34793.0,0.24157544]
[1625550328684,0.01498396,34795.0,34793.0,0.24157544]
[1625550328985,0.01498429,34794.0,34793.0,0.24157544]
[1625550329439,0.01498377,34797.0,34793.0,0.24157544]
[1625550329543,0.07398377,34797.0,34793.0,0.24157544]
[1625550329737,0.059,34797.0,34793.0,0.24157544]
[1625550329986,0.01498377,34796.0,34793.0,0.24157544]
[1625550330086,0.07398377,34796.0,34793.0,0.24157544]
[1625550330487,0.01498382,34795.0,34793.0,0.24157544]
[1625550331038,0.01498384,34798.0,34793.0,0.24157544]
[1625550331240,0.07398384,34798.0,34793.0,0.24157544]
[1625550331340,0.07398384,34798.0,34797.0,0.24057544]
[1625550331640,0.059,34798.0,34797.0,0.24057544]
[1625550331844,0.07398386,34798.0,34797.0,0.24057544]
[1625550335401,0.13298386,34798.0,34797.0,0.24057544]
[1625550335502,0.81065312,34798.0,34797.0,0.24057544]
[1625550335906,0.75165312,34798.0,34797.0,0.24057544]
[1625550336104,0.81065312,34798.0,34797.0,0.24057544]
[1625550336304,1.82709712,34798.0,34797.0,0.24157544]
[1625550336904,2.08874712,34798.0,34797.0,0.24157544]
[1625550337104,2.08874712,34798.0,34791.0,0.14914523]
[1625550337307,2.58874712,34798.0,34791.0,0.01884523]
[1625550337407,0.72172632,34792.0,34791.0,0.00294523]
[1625550337506,0.72172632,34792.0,34789.0,0.92528127]
[1625550337605,0.83972632,34792.0,34789.0,0.60808127]
[1625550337704,0.85471498,34792.0,34789.0,0.52508127]
[1625550337804,0.85471498,34792.0,34789.0,0.26558127]
[1625550337904,0.01498876,34791.0,34789.0,0.26558127]
[1625550338005,0.07398876,34791.0,34789.0,0.04138127]
[1625550338105,0.35949876,34791.0,34789.0,0.03808127]
[1625550338204,0.35949876,34791.0,34787.0,1.3366567]
[1625550338304,0.35949876,34791.0,34787.0,0.003]
[1625550338406,5.1689,34788.0,34787.0,0.003]
[1625550338505,5.2869,34788.0,34780.0,1.33718573]
[1625550338706,5.30188944,34788.0,34780.0,1.33718573]
[1625550338856,5.30188944,34788.0,34779.0,1.33801983]
[1625550339059,0.07398958,34787.0,34779.0,1.33801983]
[1625550339154,0.13298958,34787.0,34779.0,1.33801983]
[1625550339354,0.13298958,34787.0,34786.0,0.003]
[1625550339455,0.13298958,34787.0,34781.0,0.004]
[1625550339456,0.056,34786.0,34781.0,0.004]
[1625550339555,0.12999028,34786.0,34781.0,0.004]
[1625550339808,0.01499126,34785.0,34781.0,0.004]
[1625550339904,0.07399126,34785.0,34781.0,0.004]
[1625550340005,0.13299126,34785.0,34781.0,0.004]
[1625550340506,0.118,34785.0,34781.0,0.004]
[1625550340806,0.0149774,34784.0,34781.0,0.004]
[1625550340908,0.4223274,34784.0,34781.0,0.004]
[1625550341258,0.01499325,34783.0,34781.0,0.004]
[1625550341359,0.13299325,34783.0,34781.0,0.004]
[1625550341459,0.48115088,34782.0,34781.0,0.004]
[1625550341559,0.59915088,34782.0,34781.0,0.004]
[1625550341859,0.61414441,34782.0,34781.0,0.004]
[1625550344413,0.059,34781.0,34772.0,1.16274307]
[1625550344563,0.118,34781.0,34772.0,1.16274307]
[1625550344662,0.5,34780.0,34772.0,1.10274307]
[1625550344762,0.618,34780.0,34772.0,1.09874307]
[1625550344863,0.618,34780.0,34758.0,0.24057544]
[1625550344864,4.1683,34773.0,34763.0,1.51185774]
[1625550344965,4.51917,34773.0,34763.0,1.51185774]
[1625550345062,4.63717,34773.0,34763.0,1.51185774]
[1625550345263,4.57817,34773.0,34763.0,1.51185774]
[1625550345364,4.57817,34773.0,34762.0,1.51229238]
[1625550345464,0.72172632,34763.0,34762.0,1.51229238]
[1625550345665,0.78072632,34763.0,34762.0,1.51229238]
[1625550345764,0.78072632,34763.0,34762.0,1.5157055]
[1625550346314,0.78072632,34763.0,34762.0,1.51229238]
[1625550346614,0.78072632,34763.0,34758.0,0.24057544]
[1625550346615,0.78072632,34763.0,34761.0,1.51262729]
[1625550347969,0.78072632,34763.0,34760.0,1.51158993]
[1625550349121,4.6736,34761.0,34760.0,1.51158993]
[1625550349223,4.6736,34761.0,34759.0,1.51779534]
[1625550350874,4.6736,34761.0,34760.0,1.51059641]
[1625550351530,4.6736,34761.0,34759.0,1.51616028]
[1625550351879,4.6736,34761.0,34759.0,0.005]
[1625550354185,4.7326,34761.0,34759.0,0.005]
[1625550354585,4.7916,34761.0,34759.0,0.005]
[1625550357291,4.7916,34761.0,34757.0,0.001]
[1625550357593,0.24057544,34758.0,34757.0,0.001]
[1625550357697,0.29957544,34758.0,34757.0,0.001]
[1625550357793,0.60378544,34758.0,34757.0,0.001]
[1625550359594,0.84436088,34758.0,34757.0,0.001]
[1625550361802,0.59915088,34758.0,34757.0,0.001]
[1625550362102,0.54015088,34758.0,34757.0,0.001]
[1625550362805,0.54015088,34758.0,34757.0,0.26637]
[1625550362905,0.48115088,34758.0,34757.0,0.26637]
[1625550363256,0.48115088,34758.0,34757.0,1.43770906]
[1625550363558,0.48115088,34758.0,34757.0,2.77584001]
[1625550363909,0.48115088,34758.0,34757.0,1.43770906]
[1625550365011,0.48115088,34758.0,34757.0,1.93939277]
[1625550366315,0.48115088,34758.0,34757.0,1.93839277]
[1625550366616,0.48115088,34758.0,34757.0,0.26537]
[1625550366965,0.48115088,34758.0,34757.0,3.27322956]
[1625550367818,0.48115088,34758.0,34757.0,2.9391459]
[1625550368367,0.54015088,34758.0,34757.0,2.9391459]
[1625550369019,0.54015088,34758.0,34757.0,1.76942274]
[1625550369318,0.59915088,34758.0,34757.0,1.76942274]
[1625550369418,0.54015088,34758.0,34757.0,1.76942274]
[1625550369869,0.54015088,34758.0,34757.0,0.76667993]
[1625550370070,0.54015088,34758.0,34757.0,0.50130993]
[1625550372828,0.54015088,34758.0,34757.0,0.50472371]
[1625550374130,0.54015088,34758.0,34757.0,0.00341378]
[1625550375385,0.54015088,34758.0,34756.0,0.00341413]
[1625550375489,0.59915088,34758.0,34756.0,0.00341413]
[1625550375635,0.59915088,34758.0,34757.0,0.00341418]
[1625550375889,0.59915088,34758.0,34756.0,0.00341413]
[1625550376489,0.01501498,34757.0,34755.0,0.001]
[1625550376588,0.23301498,34757.0,34755.0,0.001]
[1625550376689,0.218,34757.0,34755.0,0.001]
[1625550376889,0.118,34757.0,34755.0,0.001]
[1625550376991,0.118,34757.0,34756.0,0.0034142]
[1625550377541,0.218,34757.0,34755.0,0.001]
[1625550377643,0.24057544,34756.0,34755.0,0.001]
[1625550377742,0.29957544,34756.0,34755.0,0.001]
[1625550377841,0.35857544,34756.0,34755.0,0.001]
[1625550378041,0.35857544,34756.0,34755.0,0.00441425]
[1625550378241,0.35857544,34756.0,34755.0,0.001]
[1625550378541,0.35857544,34756.0,34755.0,0.00441425]
[1625550378641,0.45857544,34756.0,34755.0,0.00441425]
[1625550382053,0.45857544,34756.0,34755.0,0.50621532]
[1625550383207,0.45857544,34756.0,34755.0,0.00441425]
[1625550383857,0.45857544,34756.0,34755.0,0.50619269]
[1625550385310,0.4735868,34756.0,34755.0,0.50619269]
[1625550385561,0.4735868,34756.0,34755.0,0.00441425]
[1625550386815,0.6846768,34756.0,34755.0,0.00441425]
[1625550387364,0.6846768,34756.0,34755.0,0.00341425]
[1625550387617,0.6846768,34756.0,34754.0,0.00341419]
[1625550387764,0.24057544,34755.0,34754.0,0.00341419]
[1625550387865,0.29957544,34755.0,34754.0,0.00341419]
[1625550387965,0.35857544,34755.0,34754.0,0.50605888]
[1625550388615,0.45857544,34755.0,34754.0,0.50605888]
[1625550390021,0.45857544,34755.0,34754.0,1.51153717]
[1625550390366,0.45857544,34755.0,34754.0,0.50605888]
[1625550391017,0.47358705,34755.0,34754.0,0.50605888]
[1625550391220,0.45857544,34755.0,34754.0,0.50605888]
[1625550391625,0.45857544,34755.0,34754.0,1.51150346]
[1625550391922,0.45857544,34755.0,34754.0,2.68533462]
[1625550392824,0.39957544,34755.0,34754.0,2.68533462]
[1625550392923,0.39957544,34755.0,34754.0,2.96726462]
[1625550393825,0.39957544,34755.0,34754.0,3.20784006]
[1625550394476,0.41458529,34755.0,34754.0,2.92591006]
[1625550394576,0.41458529,34755.0,34754.0,2.68533462]
[1625550394677,0.41458529,34755.0,34754.0,2.68192043]
[1625550394775,0.47358529,34755.0,34754.0,2.68192043]
[1625550395177,0.47358529,34755.0,34754.0,0.50264469]
[1625550396128,0.47358529,34755.0,34754.0,1.51140355]
[1625550396780,0.47358529,34755.0,34754.0,0.50264469]
[1625550398084,0.47358529,34755.0,34754.0,1.17516157]
[1625550398636,0.47358529,34755.0,34754.0,2.18467029]
[1625550400486,1.66298743,34755.0,34754.0,2.18467029]
[1625550401387,1.66298743,34755.0,34754.0,0.18397029]
[1625550403942,1.66298743,34755.0,34752.0,1.04068133]
[1625550404040,2.16298743,34755.0,34752.0,1.04068133]
[1625550404341,0.0150161,34754.0,34752.0,1.04068133]
[1625550404443,0.0150161,34754.0,34750.0,1.34765958]
[1625550404541,0.0740161,34754.0,34750.0,1.34765958]
[1625550404893,0.01501633,34753.0,34750.0,1.34765958]
[1625550404993,0.07401633,34753.0,34750.0,1.34765958]
[1625550405092,0.1,34751.0,34750.0,1.34765958]
[1625550405392,0.11501621,34751.0,34750.0,1.34765958]
[1625550405893,0.59616709,34751.0,34750.0,1.34765958]
[1625550405993,0.90607709,34751.0,34750.0,1.34765958]
[1625550406293,0.90607709,34751.0,34749.0,1.34872871]
[1625550406795,0.01501646,34750.0,34749.0,1.34872871]
[1625550407295,0.01501646,34750.0,34749.0,1.35214376]
[1625550407696,0.1,34750.0,34749.0,1.34872871]
[1625550407949,0.11501594,34750.0,34749.0,1.35214376]
[1625550408756,0.17401594,34750.0,34749.0,1.34872871]
[1625550415117,0.17401594,34750.0,34749.0,1.35214379]
[1625550416722,0.17401594,34750.0,34749.0,1.34872871]
[1625550416821,0.47918594,34750.0,34749.0,1.34872871]
[1625550417221,0.81955395,34750.0,34749.0,1.34872871]
[1625550419127,0.47918594,34750.0,34749.0,1.34872871]
[1625550419378,0.53818594,34750.0,34749.0,1.34872871]
[1625550421483,0.53818594,34750.0,34749.0,1.35214385]
[1625550421583,0.87849721,34750.0,34749.0,1.35214385]
[1625550423192,0.53818594,34750.0,34749.0,1.35214385]
[1625550423845,0.53818594,34750.0,34749.0,1.16414385]
[1625550424298,0.53818594,34750.0,34749.0,1.18042419]
[1625550424850,0.62458594,34750.0,34749.0,1.18042419]
[1625550425198,0.62458594,34750.0,34749.0,1.17372419]
[1625550426903,0.62458594,34750.0,34749.0,1.03272419]
[1625550427503,0.53818594,34750.0,34749.0,1.03272419]
[1625550428554,0.62388594,34750.0,34749.0,1.03272419]
[1625550430213,0.53818594,34750.0,34749.0,1.03272419]
[1625550432170,0.52317,34750.0,34749.0,1.03272419]
[1625550432419,0.53818339,34750.0,34749.0,1.03272419]
[1625550433621,0.62388339,34750.0,34749.0,1.03272419]
[1625550434477,1.64541732,34750.0,34749.0,2.04558346]
[1625550436532,1.64541732,34750.0,34749.0,2.01428346]
[1625550436985,1.64541732,34750.0,34749.0,1.01285927]
[1625550439640,3.00751735,34750.0,34749.0,1.01285927]
[1625550440140,1.64541732,34750.0,34749.0,1.01285927]
[1625550440640,3.00737547,34750.0,34749.0,1.01285927]
[1625550440941,3.00737547,34750.0,34749.0,0.99595927]
[1625550442196,3.00737547,34750.0,34747.0,0.001]
[1625550442295,3.06437547,34750.0,34747.0,0.001]
[1625550442546,0.01501742,34749.0,34747.0,0.001]
[1625550442646,0.13301742,34749.0,34747.0,0.001]
[1625550443047,0.01501742,34748.0,34747.0,0.001]
[1625550443146,0.13301742,34748.0,34747.0,0.001]
[1625550443247,0.23301742,34748.0,34747.0,0.001]
[1625550444100,0.47359286,34748.0,34747.0,0.001]
[1625550452270,1.83601164,34748.0,34747.0,0.001]
[1625550453374,1.83601164,34748.0,34745.0,1.35270895]
[1625550453473,1.89301164,34748.0,34745.0,1.35270895]
[1625550453824,1.79301164,34748.0,34745.0,1.35270895]
[1625550453924,0.01501562,34747.0,34742.0,0.002]
[1625550454023,0.07401562,34747.0,34742.0,0.002]
[1625550454125,0.48115088,34743.0,34742.0,0.002]
[1625550454223,0.85781088,34743.0,34742.0,0.002]
[1625550454325,0.91681088,34743.0,34742.0,0.002]
[1625550454426,0.93182673,34743.0,34742.0,0.00541583]
[1625550454525,1.03182673,34743.0,34742.0,0.00541583]
[1625550455227,1.11702673,34743.0,34742.0,0.00541583]
[1625550456383,1.11702673,34743.0,34742.0,1.583e-05]
[1625550456785,1.11702673,34743.0,34741.0,0.00341587]
[1625550456885,1.11702673,34743.0,34742.0,1.18323049]
[1625550456987,4.79142673,34743.0,34742.0,1.18323049]
[1625550457087,4.77641088,34743.0,34742.0,1.18323049]
[1625550457386,4.79143046,34743.0,34742.0,1.18664638]
[1625550458539,4.79143046,34743.0,34742.0,1.18323049]
[1625550459341,5.98400517,34743.0,34742.0,1.18323049]
[1625550461096,5.98400517,34743.0,34742.0,0.36563049]
[1625550461650,6.66544994,34743.0,34742.0,0.677887]
[1625550462202,6.58024994,34743.0,34742.0,0.677887]
[1625550462302,6.58024994,34743.0,34742.0,0.969037]
[1625550463505,6.58024994,34743.0,34742.0,0.677887]
[1625550465060,6.58024994,34743.0,34742.0,0.634387]
[1625550468567,5.38767523,34743.0,34742.0,0.634387]
[1625550469019,5.38767523,34743.0,34742.0,1.98879195]
[1625550471173,1.65427523,34743.0,34742.0,2.33723195]
[1625550471274,1.65427523,34743.0,34742.0,3.35249054]
[1625550471373,1.33661523,34743.0,34742.0,3.35590615]
[1625550471473,1.27761523,34743.0,34742.0,3.35590615]
[1625550471577,0.59617046,34743.0,34742.0,4.87711891]
[1625550471675,0.59631058,34745.0,34742.0,4.87711891]
[1625550471776,0.65531058,34745.0,34742.0,4.87711891]
[1625550471878,0.001,34747.0,34742.0,4.87711891]
[1625550472079,0.001,34747.0,34743.0,0.00341512]
[1625550472177,0.17040543,34746.0,34744.0,3.88399172]
[1625550472277,1.02158143,34749.0,34745.0,0.72172632]
[1625550472379,1.08058143,34749.0,34745.0,0.72172632]
[1625550472476,1.08058143,34749.0,34747.0,3.87733852]
[1625550472477,0.059,34749.0,34747.0,3.87733852]
[1625550472676,0.01497288,34748.0,34747.0,3.87733852]
[1625550472877,0.24057544,34751.0,34748.0,0.00341491]
[1625550473379,1.2620083,34754.0,34750.0,2.35746299]
[1625550473479,1.3210083,34754.0,34750.0,2.57414299]
[1625550473730,0.29957544,34754.0,34753.0,2.35484024]
[1625550473981,0.31454695,34754.0,34753.0,2.35484024]
[1625550474331,0.31454695,34754.0,34753.0,2.83599112]
[1625550474631,1.02120403,34756.0,34753.0,2.83599112]
[1625550475232,1.02120403,34756.0,34755.0,1.00943617]
[1625550475584,1.03615879,34756.0,34755.0,1.00943617]
[1625550475687,0.01495476,34756.0,34755.0,1.00943617]
[1625550476433,0.059,34756.0,34755.0,1.00943617]
[1625550476534,1.26455527,34757.0,34755.0,2.35415466]
[1625550476638,0.0739551,34756.0,34755.0,2.35415466]
[1625550476885,0.059,34756.0,34755.0,2.35415466]
[1625550476986,1.08003599,34756.0,34755.0,1.00943617]
[1625550477686,1.09499139,34756.0,34755.0,1.00943617]
[1625550479340,1.15399139,34756.0,34755.0,1.00943617]
[1625550480291,1.15399139,34756.0,34753.0,1.72871317]
[1625550480292,2.5150184,34756.0,34753.0,1.72871317]
[1625550480392,2.5720184,34756.0,34753.0,1.72871317]
[1625550480692,0.01497649,34755.0,34753.0,1.72871317]
[1625550480792,1.02082667,34754.0,34753.0,1.72871317]
[1625550481193,1.03581425,34754.0,34753.0,1.72871317]
[1625550481291,2.22675828,34754.0,34753.0,1.72871317]
[1625550481793,2.34475828,34754.0,34753.0,1.72871317]
[1625550481995,2.34475828,34754.0,34753.0,0.72172632]
[1625550482545,3.70595296,34754.0,34753.0,0.72172632]
[1625550482796,3.79155296,34754.0,34753.0,0.72172632]
[1625550482896,3.79155296,34754.0,34753.0,0.48115088]
[1625550484400,5.32312665,34754.0,34753.0,0.48115088]
[1625550485452,5.82312665,34754.0,34751.0,0.001]
[1625550485554,5.88012665,34754.0,34746.0,1.0103794]
[1625550485753,0.01499107,34753.0,34746.0,0.9393794]
[1625550485852,0.13299107,34753.0,34746.0,0.9393794]
[1625550485952,0.28765,34752.0,34746.0,0.9393794]
[1625550486056,0.40565,34752.0,34746.0,0.9393794]
[1625550486154,0.90565,34752.0,34746.0,0.9393794]
[1625550486254,0.01499102,34751.0,34746.0,0.9393794]
[1625550486356,0.01499102,34751.0,34745.0,0.24057544]
[1625550486357,2.55288878,34747.0,34745.0,0.24057544]
[1625550486454,0.48115088,34746.0,34745.0,0.24057544]
[1625550486556,0.54015088,34746.0,34745.0,0.24057544]
[1625550486654,0.59915088,34746.0,34745.0,0.22757544]
[1625550486803,0.61414176,34746.0,34745.0,0.05257544]
[1625550486904,1.80554268,34746.0,34745.0,0.05257544]
[1625550487307,3.16716303,34746.0,34745.0,0.05257544]
[1625550488408,3.16716303,34746.0,34742.0,1.41729894]
[1625550488510,0.0866,34745.0,34742.0,0.24057544]
[1625550488607,0.46751,34745.0,34742.0,0.24057544]
[1625550488710,0.52651,34745.0,34742.0,0.24057544]
[1625550488911,1.1913326,34743.0,34742.0,0.24057544]
[1625550489008,5.5821326,34743.0,34742.0,0.24057544]
[1625550489409,6.95868943,34743.0,34742.0,0.24057544]
[1625550491764,7.46926712,34743.0,34742.0,0.24057544]
[1625550492415,7.46926712,34743.0,34741.0,0.003]